[Event "Titled Tuesday Blitz June 13 Late 2023"]
[White "Avalos Parra, Joao"]
[Black "Osmak, Yuliia"]
[WhiteFideId "3402541"]
[BlackFideId "14101602"]
[WhiteElo "2173"]
[BlackElo "2303"]
[Result "1-0"]
[Round "4"]
[TimeControl "180+2"]
[Date "2023.06.13"]
[WhiteClock "0:00:43"]
[BlackClock "0:00:27"]
[Board "136"]

1. d4 {[%clk 0:03:00]}  Nf6 {[%clk 0:02:54]} 2. c4 {[%clk 0:03:01]}  g6 {[%clk 0:02:54]} 3. Nc3 {[%clk 0:03:01]}  d5 {[%clk 0:02:54]} 4. Nf3 {[%clk 0:03:01]}  Bg7 {[%clk 0:02:53]} 5. h4 {[%clk 0:03:02]}  dxc4 {[%clk 0:02:49]} 6. e4 {[%clk 0:02:57]}  b5 {[%clk 0:02:45]} 7. h5 {[%clk 0:02:30]}  a6 {[%clk 0:02:31]} 8. h6 {[%clk 0:02:11]}  Bf8 {[%clk 0:02:30]} 9. Bg5 {[%clk 0:02:12]}  Bb7 {[%clk 0:02:28]} 10. d5 {[%clk 0:02:02]}  Nbd7 {[%clk 0:02:19]} 11. Qd4 {[%clk 0:01:57]}  c5 {[%clk 0:01:56]} 12. dxc6 {[%clk 0:01:54]}  Bxc6 {[%clk 0:01:56]} 13. e5 {[%clk 0:01:54]}  b4 {[%clk 0:01:23]} 14. exf6 {[%clk 0:01:36]}  exf6 {[%clk 0:01:16]} 15. Ne4 {[%clk 0:01:30]}  fxg5 {[%clk 0:01:13]} 16. Qxh8 {[%clk 0:01:05]}  Bxe4 {[%clk 0:01:11]} 17. O-O-O {[%clk 0:01:05]}  Qa5 {[%clk 0:00:57]} 18. Qd4 {[%clk 0:01:00]}  Bf5 {[%clk 0:00:47]} 19. Bxc4 {[%clk 0:01:00]}  O-O-O {[%clk 0:00:42]} 20. Qa7 {[%clk 0:00:44]}  Bc5 {[%clk 0:00:27]} 21. Bxa6+ {[%clk 0:00:43]} 1-0


[Site "https://www.chess.com"]

[Event "Titled Tuesday Blitz June 13 Late 2023"]
[White "Bogaudinov, Rushan"]
[Black "Roebers, Eline"]
[WhiteFideId "4129288"]
[BlackFideId "1058401"]
[WhiteElo "1967"]
[BlackElo "2508"]
[Result "1-0"]
[Round "4"]
[TimeControl "180+2"]
[Date "2023.06.13"]
[WhiteClock "0:00:27"]
[BlackClock "0:00:00"]
[Board "137"]

1. d4 {[%clk 0:03:00]}  f5 {[%clk 0:02:56]} 2. Nc3 {[%clk 0:02:57]}  Nf6 {[%clk 0:02:56]} 3. Bg5 {[%clk 0:02:55]}  d5 {[%clk 0:02:56]} 4. Bxf6 {[%clk 0:02:46]}  exf6 {[%clk 0:02:57]} 5. e3 {[%clk 0:02:43]}  Be6 {[%clk 0:02:57]} 6. Nf3 {[%clk 0:02:40]}  Qd7 {[%clk 0:02:54]} 7. Bb5 {[%clk 0:02:31]}  Nc6 {[%clk 0:02:49]} 8. O-O {[%clk 0:02:26]}  a6 {[%clk 0:02:48]} 9. Ba4 {[%clk 0:02:24]}  g5 {[%clk 0:02:46]} 10. a3 {[%clk 0:01:58]}  h5 {[%clk 0:02:44]} 11. b4 {[%clk 0:01:57]}  b5 {[%clk 0:02:39]} 12. Bb3 {[%clk 0:01:56]}  h4 {[%clk 0:02:31]} 13. Ne1 {[%clk 0:01:53]}  g4 {[%clk 0:02:25]} 14. Nd3 {[%clk 0:01:45]}  Bf7 {[%clk 0:02:00]} 15. Nf4 {[%clk 0:01:39]}  Ne7 {[%clk 0:01:59]} 16. a4 {[%clk 0:01:34]}  Rb8 {[%clk 0:01:54]} 17. axb5 {[%clk 0:01:33]}  axb5 {[%clk 0:01:55]} 18. Ra7 {[%clk 0:01:27]}  Bh6 {[%clk 0:01:46]} 19. Qa1 {[%clk 0:01:23]}  O-O {[%clk 0:01:32]} 20. Qa5 {[%clk 0:01:13]}  Rfc8 {[%clk 0:01:17]} 21. Qa6 {[%clk 0:01:08]}  Bxf4 {[%clk 0:01:08]} 22. exf4 {[%clk 0:01:08]}  Nc6 {[%clk 0:01:09]} 23. Rb7 {[%clk 0:00:50]}  Nxb4 {[%clk 0:01:02]} 24. Qxb5 {[%clk 0:00:48]}  Rxb7 {[%clk 0:00:37]} 25. Qxd7 {[%clk 0:00:46]}  Rcb8 {[%clk 0:00:21]} 26. Qxf5 {[%clk 0:00:42]}  c6 {[%clk 0:00:19]} 27. Qxg4+ {[%clk 0:00:41]}  Kf8 {[%clk 0:00:19]} 28. Qxh4 {[%clk 0:00:40]}  Kg7 {[%clk 0:00:16]} 29. h3 {[%clk 0:00:36]}  Rh8 {[%clk 0:00:15]} 30. Qg3+ {[%clk 0:00:36]}  Kf8 {[%clk 0:00:15]} 31. f5 {[%clk 0:00:35]}  Na6 {[%clk 0:00:14]} 32. Qd6+ {[%clk 0:00:35]}  Kg7 {[%clk 0:00:14]} 33. Qxc6 {[%clk 0:00:34]}  Ra7 {[%clk 0:00:15]} 34. Nxd5 {[%clk 0:00:33]}  Bxd5 {[%clk 0:00:14]} 35. Qxd5 {[%clk 0:00:33]}  Nb8 {[%clk 0:00:11]} 36. Re1 {[%clk 0:00:32]}  Rd7 {[%clk 0:00:10]} 37. Qe4 {[%clk 0:00:31]}  Rhd8 {[%clk 0:00:06]} 38. c3 {[%clk 0:00:30]}  Na6 {[%clk 0:00:05]} 39. Qg4+ {[%clk 0:00:30]}  Kh7 {[%clk 0:00:05]} 40. Qh5+ {[%clk 0:00:29]}  Kg7 {[%clk 0:00:05]} 41. Qg6+ {[%clk 0:00:28]}  Kh8 {[%clk 0:00:06]} 42. Qxf6+ {[%clk 0:00:28]}  Kh7 {[%clk 0:00:00]} 43. Re4 {[%clk 0:00:27]} 1-0


[Site "https://www.chess.com"]

[Event "Titled Tuesday Blitz June 13 Late 2023"]
[White "Szente Varga, Fruzsina"]
[Black "Fedotov, Nikita"]
[WhiteFideId "712264"]
[BlackFideId "24161446"]
[WhiteElo "1994"]
[BlackElo "2211"]
[Result "0-1"]
[Round "4"]
[TimeControl "180+2"]
[Date "2023.06.13"]
[WhiteClock "0:01:39"]
[BlackClock "0:02:29"]
[Board "139"]

1. e4 {[%clk 0:03:00]}  e6 {[%clk 0:02:59]} 2. d4 {[%clk 0:02:55]}  d5 {[%clk 0:02:59]} 3. Nd2 {[%clk 0:02:55]}  Nc6 {[%clk 0:02:58]} 4. Bb5 {[%clk 0:02:53]}  Bd7 {[%clk 0:02:57]} 5. c3 {[%clk 0:02:44]}  a6 {[%clk 0:02:56]} 6. Bd3 {[%clk 0:02:44]}  Nce7 {[%clk 0:02:44]} 7. Ngf3 {[%clk 0:02:39]}  Bb5 {[%clk 0:02:41]} 8. Bc2 {[%clk 0:02:28]}  a5 {[%clk 0:02:40]} 9. a4 {[%clk 0:02:26]}  Ba6 {[%clk 0:02:40]} 10. b4 {[%clk 0:02:20]}  c6 {[%clk 0:02:36]} 11. exd5 {[%clk 0:02:06]}  Nxd5 {[%clk 0:02:35]} 12. Bb2 {[%clk 0:01:55]}  axb4 {[%clk 0:02:35]} 13. c4 {[%clk 0:01:55]}  Nc3 {[%clk 0:02:35]} 14. Qc1 {[%clk 0:01:42]}  Nf6 {[%clk 0:02:28]} 15. O-O {[%clk 0:01:39]}  Ne2+ {[%clk 0:02:29]} 0-1


[Site "https://www.chess.com"]

[Event "Titled Tuesday Blitz June 13 Late 2023"]
[White "Girsh, Daniel"]
[Black "Spichkin, Alexander"]
[WhiteFideId "30949190"]
[BlackFideId "4144074"]
[WhiteElo "2075"]
[BlackElo "1986"]
[Result "1-0"]
[Round "4"]
[TimeControl "180+2"]
[Date "2023.06.13"]
[WhiteClock "0:01:00"]
[BlackClock "0:01:06"]
[Board "143"]

1. c4 {[%clk 0:03:00]}  f5 {[%clk 0:02:59]} 2. Nc3 {[%clk 0:03:00]}  Nf6 {[%clk 0:02:59]} 3. g3 {[%clk 0:03:00]}  d6 {[%clk 0:02:57]} 4. Bg2 {[%clk 0:03:01]}  e5 {[%clk 0:02:56]} 5. Nf3 {[%clk 0:03:01]}  Be7 {[%clk 0:02:55]} 6. O-O {[%clk 0:03:00]}  O-O {[%clk 0:02:56]} 7. d4 {[%clk 0:03:01]}  Nc6 {[%clk 0:02:57]} 8. dxe5 {[%clk 0:03:00]}  Nxe5 {[%clk 0:02:57]} 9. Nxe5 {[%clk 0:02:58]}  dxe5 {[%clk 0:02:58]} 10. Qxd8 {[%clk 0:02:59]}  Rxd8 {[%clk 0:02:57]} 11. Bg5 {[%clk 0:02:57]}  c6 {[%clk 0:02:57]} 12. b3 {[%clk 0:02:46]}  h6 {[%clk 0:02:56]} 13. Bxf6 {[%clk 0:02:33]}  Bxf6 {[%clk 0:02:50]} 14. e4 {[%clk 0:02:33]}  Rd3 {[%clk 0:02:45]} 15. Ne2 {[%clk 0:02:30]}  Be6 {[%clk 0:02:44]} 16. Bh3 {[%clk 0:02:19]}  g6 {[%clk 0:02:41]} 17. exf5 {[%clk 0:02:17]}  gxf5 {[%clk 0:02:38]} 18. Rfe1 {[%clk 0:02:16]}  e4 {[%clk 0:02:37]} 19. Nf4 {[%clk 0:02:13]}  Bxa1 {[%clk 0:02:37]} 20. Nxd3 {[%clk 0:02:12]}  Bc3 {[%clk 0:02:30]} 21. Rc1 {[%clk 0:02:12]}  exd3 {[%clk 0:02:27]} 22. Rxc3 {[%clk 0:02:12]}  Rd8 {[%clk 0:02:28]} 23. Rc1 {[%clk 0:02:10]}  d2 {[%clk 0:02:28]} 24. Rd1 {[%clk 0:02:09]}  b5 {[%clk 0:02:29]} 25. cxb5 {[%clk 0:02:07]}  cxb5 {[%clk 0:02:28]} 26. Kf1 {[%clk 0:02:07]}  a5 {[%clk 0:01:53]} 27. Ke2 {[%clk 0:01:46]}  a4 {[%clk 0:01:52]} 28. Rxd2 {[%clk 0:01:40]}  Rxd2+ {[%clk 0:01:49]} 29. Kxd2 {[%clk 0:01:41]}  axb3 {[%clk 0:01:50]} 30. axb3 {[%clk 0:01:42]}  Bxb3 {[%clk 0:01:50]} 31. Bxf5 {[%clk 0:01:42]}  Bc4 {[%clk 0:01:49]} 32. Kc3 {[%clk 0:01:42]}  Kg7 {[%clk 0:01:45]} 33. Kb4 {[%clk 0:01:40]}  Kf6 {[%clk 0:01:43]} 34. Bd7 {[%clk 0:01:41]}  Ke5 {[%clk 0:01:41]} 35. Bxb5 {[%clk 0:01:41]}  Bd5 {[%clk 0:01:41]} 36. Kc3 {[%clk 0:01:36]}  Ke4 {[%clk 0:01:39]} 37. Be2 {[%clk 0:01:36]}  Be6 {[%clk 0:01:36]} 38. Kd2 {[%clk 0:01:36]}  Bh3 {[%clk 0:01:36]} 39. f3+ {[%clk 0:01:36]}  Kd4 {[%clk 0:01:36]} 40. Bd1 {[%clk 0:01:35]}  Be6 {[%clk 0:01:33]} 41. Bc2 {[%clk 0:01:35]}  Bh3 {[%clk 0:01:31]} 42. f4 {[%clk 0:01:36]}  h5 {[%clk 0:01:30]} 43. Bd1 {[%clk 0:01:31]}  h4 {[%clk 0:01:29]} 44. Bf3 {[%clk 0:01:28]}  hxg3 {[%clk 0:01:28]} 45. hxg3 {[%clk 0:01:28]}  Bd7 {[%clk 0:01:26]} 46. g4 {[%clk 0:01:28]}  Bc8 {[%clk 0:01:20]} 47. g5 {[%clk 0:01:22]}  Bf5 {[%clk 0:01:19]} 48. Ke2 {[%clk 0:01:23]}  Bh3 {[%clk 0:01:18]} 49. Kf2 {[%clk 0:01:08]}  Bd7 {[%clk 0:01:12]} 50. Kg3 {[%clk 0:01:07]}  Ke3 {[%clk 0:01:12]} 51. Bd5 {[%clk 0:01:02]}  Bf5 {[%clk 0:01:06]} 52. Bf7 {[%clk 0:01:00]} 1-0


[Site "https://www.chess.com"]

[Event "Titled Tuesday Blitz June 13 Late 2023"]
[White "whiteglovethief"]
[Black "Francisco_Ferrari"]
[WhiteElo "2493"]
[BlackElo "2346"]
[Result "1-0"]
[Round "4"]
[TimeControl "180+2"]
[Date "2023.06.13"]
[WhiteClock "0:01:02"]
[BlackClock "0:00:05"]
[Board "148"]

1. d4 {[%clk 0:03:00]}  Nf6 {[%clk 0:02:59]} 2. c4 {[%clk 0:03:00]}  e6 {[%clk 0:02:58]} 3. Nf3 {[%clk 0:03:00]}  d5 {[%clk 0:02:50]} 4. g3 {[%clk 0:03:00]}  Be7 {[%clk 0:02:50]} 5. Bg2 {[%clk 0:03:00]}  O-O {[%clk 0:02:50]} 6. O-O {[%clk 0:03:00]}  dxc4 {[%clk 0:02:43]} 7. Ne5 {[%clk 0:03:00]}  Nc6 {[%clk 0:02:42]} 8. Nxc6 {[%clk 0:02:55]}  bxc6 {[%clk 0:02:43]} 9. Nc3 {[%clk 0:02:54]}  Rb8 {[%clk 0:02:36]} 10. Bxc6 {[%clk 0:02:49]}  Bb7 {[%clk 0:02:23]} 11. Bxb7 {[%clk 0:02:46]}  Rxb7 {[%clk 0:02:24]} 12. Rb1 {[%clk 0:02:14]}  c5 {[%clk 0:02:03]} 13. e3 {[%clk 0:02:07]}  Rd7 {[%clk 0:01:45]} 14. Qa4 {[%clk 0:02:00]}  cxd4 {[%clk 0:01:44]} 15. exd4 {[%clk 0:02:01]}  Rxd4 {[%clk 0:01:44]} 16. Be3 {[%clk 0:01:59]}  Rd3 {[%clk 0:01:19]} 17. Qxc4 {[%clk 0:01:58]}  Qd7 {[%clk 0:01:19]} 18. Rfd1 {[%clk 0:01:53]}  Rxd1+ {[%clk 0:00:57]} 19. Rxd1 {[%clk 0:01:54]}  Qb7 {[%clk 0:00:57]} 20. Qb5 {[%clk 0:01:25]}  Qxb5 {[%clk 0:00:33]} 21. Nxb5 {[%clk 0:01:24]}  Rb8 {[%clk 0:00:34]} 22. Nxa7 {[%clk 0:01:19]}  Rxb2 {[%clk 0:00:33]} 23. Nc6 {[%clk 0:01:19]}  Kf8 {[%clk 0:00:20]} 24. a4 {[%clk 0:01:17]}  Nd5 {[%clk 0:00:18]} 25. Bd4 {[%clk 0:01:12]}  Ra2 {[%clk 0:00:18]} 26. Rb1 {[%clk 0:01:10]}  Bd6 {[%clk 0:00:15]} 27. Bc5 {[%clk 0:01:03]}  Bxc5 {[%clk 0:00:05]} 28. Rb8# {[%clk 0:01:02]} 1-0


[Site "https://www.chess.com"]

[Event "Titled Tuesday Blitz June 13 Late 2023"]
[White "Krishnakumar, Sriram"]
[Black "SalihEke"]
[WhiteFideId "30915856"]
[WhiteElo "2481"]
[BlackElo "2298"]
[Result "1/2-1/2"]
[Round "4"]
[TimeControl "180+2"]
[Date "2023.06.13"]
[WhiteClock "0:00:20"]
[BlackClock "0:00:13"]
[Board "152"]

1. e4 {[%clk 0:03:00]}  e5 {[%clk 0:02:55]} 2. Nf3 {[%clk 0:03:00]}  Nc6 {[%clk 0:02:55]} 3. Bc4 {[%clk 0:03:00]}  Bc5 {[%clk 0:02:34]} 4. c3 {[%clk 0:03:00]}  Nf6 {[%clk 0:02:33]} 5. d3 {[%clk 0:02:59]}  d6 {[%clk 0:02:29]} 6. O-O {[%clk 0:02:58]}  h6 {[%clk 0:02:26]} 7. a4 {[%clk 0:02:58]}  a5 {[%clk 0:02:24]} 8. Nbd2 {[%clk 0:02:54]}  O-O {[%clk 0:02:15]} 9. h3 {[%clk 0:02:53]}  Be6 {[%clk 0:02:12]} 10. Re1 {[%clk 0:02:51]}  Qd7 {[%clk 0:02:12]} 11. Bxe6 {[%clk 0:02:47]}  Qxe6 {[%clk 0:02:08]} 12. Nf1 {[%clk 0:02:48]}  Rad8 {[%clk 0:02:07]} 13. Be3 {[%clk 0:02:46]}  Bxe3 {[%clk 0:02:03]} 14. Nxe3 {[%clk 0:02:47]}  d5 {[%clk 0:02:00]} 15. exd5 {[%clk 0:02:48]}  Nxd5 {[%clk 0:02:01]} 16. Nc4 {[%clk 0:02:48]}  f6 {[%clk 0:01:52]} 17. Qb3 {[%clk 0:02:26]}  Nf4 {[%clk 0:01:39]} 18. d4 {[%clk 0:02:25]}  Nxh3+ {[%clk 0:01:35]} 19. gxh3 {[%clk 0:02:20]}  Qxh3 {[%clk 0:01:36]} 20. Ncxe5+ {[%clk 0:01:58]}  Kh7 {[%clk 0:01:33]} 21. Qc2+ {[%clk 0:01:57]}  f5 {[%clk 0:01:33]} 22. Qd3 {[%clk 0:01:50]}  Kg8 {[%clk 0:01:13]} 23. Qf1 {[%clk 0:01:49]}  Qh5 {[%clk 0:01:13]} 24. Qg2 {[%clk 0:01:48]}  Rd6 {[%clk 0:01:12]} 25. Kf1 {[%clk 0:01:44]}  Rff6 {[%clk 0:01:09]} 26. Nxc6 {[%clk 0:01:43]}  Rxc6 {[%clk 0:01:09]} 27. Ne5 {[%clk 0:01:43]}  Rcd6 {[%clk 0:01:04]} 28. Re3 {[%clk 0:01:35]}  Rb6 {[%clk 0:01:02]} 29. Nd7 {[%clk 0:01:24]}  Rg6 {[%clk 0:00:59]} 30. Qd5+ {[%clk 0:01:21]}  Kh7 {[%clk 0:00:59]} 31. Nxb6 {[%clk 0:01:17]}  cxb6 {[%clk 0:00:54]} 32. Rg3 {[%clk 0:01:17]}  f4 {[%clk 0:00:50]} 33. Rxg6 {[%clk 0:01:14]}  Qxd5 {[%clk 0:00:50]} 34. Rg2 {[%clk 0:01:12]}  f3 {[%clk 0:00:49]} 35. Rg3 {[%clk 0:01:12]}  Qh5 {[%clk 0:00:49]} 36. Kg1 {[%clk 0:01:12]}  g5 {[%clk 0:00:48]} 37. Re1 {[%clk 0:01:12]}  Qf7 {[%clk 0:00:45]} 38. Re3 {[%clk 0:01:10]}  Qb3 {[%clk 0:00:46]} 39. Rexf3 {[%clk 0:01:10]}  Qxa4 {[%clk 0:00:45]} 40. Rf7+ {[%clk 0:01:10]}  Kg6 {[%clk 0:00:46]} 41. Rxb7 {[%clk 0:01:10]}  Qb5 {[%clk 0:00:44]} 42. b4 {[%clk 0:01:07]}  axb4 {[%clk 0:00:44]} 43. cxb4 {[%clk 0:01:07]}  Qxb4 {[%clk 0:00:44]} 44. d5 {[%clk 0:01:05]}  h5 {[%clk 0:00:41]} 45. Rc7 {[%clk 0:00:55]}  Qe1+ {[%clk 0:00:39]} 46. Kg2 {[%clk 0:00:50]}  Qe4+ {[%clk 0:00:39]} 47. Kg1 {[%clk 0:00:48]}  Qxd5 {[%clk 0:00:40]} 48. Rgc3 {[%clk 0:00:47]}  h4 {[%clk 0:00:34]} 49. R7c6+ {[%clk 0:00:47]}  Kh5 {[%clk 0:00:34]} 50. Rxb6 {[%clk 0:00:48]}  Qd1+ {[%clk 0:00:33]} 51. Kg2 {[%clk 0:00:47]}  Qg4+ {[%clk 0:00:32]} 52. Kf1 {[%clk 0:00:45]}  h3 {[%clk 0:00:30]} 53. Rxh3+ {[%clk 0:00:20]}  Qxh3+ {[%clk 0:00:30]} 54. Kg1 {[%clk 0:00:21]}  Qg4+ {[%clk 0:00:28]} 55. Kf1 {[%clk 0:00:21]}  Qd1+ {[%clk 0:00:28]} 56. Kg2 {[%clk 0:00:21]}  Qd5+ {[%clk 0:00:29]} 57. Kg1 {[%clk 0:00:22]}  Kh4 {[%clk 0:00:24]} 58. Ra6 {[%clk 0:00:18]}  Qd1+ {[%clk 0:00:19]} 59. Kg2 {[%clk 0:00:18]}  Qg4+ {[%clk 0:00:20]} 60. Kh2 {[%clk 0:00:18]}  Qf4+ {[%clk 0:00:20]} 61. Kg1 {[%clk 0:00:19]}  Qg4+ {[%clk 0:00:19]} 62. Kh2 {[%clk 0:00:18]}  Qc4 {[%clk 0:00:16]} 63. Ra3 {[%clk 0:00:17]}  Qc7+ {[%clk 0:00:14]} 64. Rg3 {[%clk 0:00:17]}  g4 {[%clk 0:00:13]} 65. Kg2 {[%clk 0:00:17]}  Qc6+ {[%clk 0:00:14]} 66. Kg1 {[%clk 0:00:17]}  Qe4 {[%clk 0:00:14]} 67. Re3 {[%clk 0:00:17]}  Qf4 {[%clk 0:00:15]} 68. Rg3 {[%clk 0:00:17]}  Qxg3+ {[%clk 0:00:14]} 69. fxg3+ {[%clk 0:00:17]}  Kxg3 {[%clk 0:00:15]} 70. Kh1 {[%clk 0:00:18]}  Kh3 {[%clk 0:00:16]} 71. Kg1 {[%clk 0:00:19]}  g3 {[%clk 0:00:16]} 72. Kh1 {[%clk 0:00:19]}  g2+ {[%clk 0:00:17]} 73. Kg1 {[%clk 0:00:20]}  Kg3 {[%clk 0:00:13]} 1/2-1/2


[Site "https://www.chess.com"]

[Event "Titled Tuesday Blitz June 13 Late 2023"]
[White "Yurasova, Daria"]
[Black "Matsuura, Frederico"]
[WhiteFideId "34146919"]
[BlackFideId "2107848"]
[WhiteElo "2109"]
[BlackElo "2302"]
[Result "0-1"]
[Round "4"]
[TimeControl "180+2"]
[Date "2023.06.13"]
[WhiteClock "0:00:02"]
[BlackClock "0:00:01"]
[Board "153"]

1. d4 {[%clk 0:03:00]}  e6 {[%clk 0:03:00]} 2. e4 {[%clk 0:03:00]}  d5 {[%clk 0:03:00]} 3. Nd2 {[%clk 0:03:00]}  Be7 {[%clk 0:02:59]} 4. c3 {[%clk 0:02:54]}  c5 {[%clk 0:02:54]} 5. Ngf3 {[%clk 0:02:48]}  cxd4 {[%clk 0:02:51]} 6. Nxd4 {[%clk 0:02:41]}  Nc6 {[%clk 0:02:48]} 7. Bb5 {[%clk 0:02:40]}  Qb6 {[%clk 0:02:45]} 8. O-O {[%clk 0:02:38]}  Nf6 {[%clk 0:02:35]} 9. exd5 {[%clk 0:02:31]}  Nxd5 {[%clk 0:02:26]} 10. Nc4 {[%clk 0:02:29]}  Qc7 {[%clk 0:02:21]} 11. Qg4 {[%clk 0:02:07]}  O-O {[%clk 0:02:08]} 12. Bxc6 {[%clk 0:01:52]}  bxc6 {[%clk 0:02:06]} 13. Qg3 {[%clk 0:01:45]}  Qxg3 {[%clk 0:01:45]} 14. hxg3 {[%clk 0:01:46]}  c5 {[%clk 0:01:44]} 15. Nc6 {[%clk 0:01:43]}  Bf6 {[%clk 0:01:43]} 16. Rd1 {[%clk 0:00:52]}  Bb7 {[%clk 0:01:33]} 17. N6e5 {[%clk 0:00:44]}  Rfd8 {[%clk 0:01:27]} 18. Ng4 {[%clk 0:00:41]}  Be7 {[%clk 0:01:18]} 19. Nge3 {[%clk 0:00:28]}  Nxe3 {[%clk 0:01:14]} 20. Bxe3 {[%clk 0:00:28]}  f6 {[%clk 0:01:06]} 21. Nd2 {[%clk 0:00:19]}  Bd5 {[%clk 0:00:54]} 22. Nb3 {[%clk 0:00:19]}  Rdc8 {[%clk 0:00:42]} 23. Rd2 {[%clk 0:00:16]}  Kf7 {[%clk 0:00:33]} 24. Rad1 {[%clk 0:00:15]}  c4 {[%clk 0:00:33]} 25. Nd4 {[%clk 0:00:13]}  a6 {[%clk 0:00:31]} 26. Ne2 {[%clk 0:00:14]}  Rab8 {[%clk 0:00:25]} 27. Nf4 {[%clk 0:00:14]}  Be4 {[%clk 0:00:24]} 28. f3 {[%clk 0:00:12]}  Ba8 {[%clk 0:00:19]} 29. Ne2 {[%clk 0:00:07]}  Bd5 {[%clk 0:00:18]} 30. Nd4 {[%clk 0:00:07]}  Rb7 {[%clk 0:00:16]} 31. Re2 {[%clk 0:00:07]}  Rcb8 {[%clk 0:00:15]} 32. Rdd2 {[%clk 0:00:07]}  g6 {[%clk 0:00:15]} 33. f4 {[%clk 0:00:05]}  h5 {[%clk 0:00:15]} 34. Nf3 {[%clk 0:00:06]}  Be4 {[%clk 0:00:11]} 35. Bd4 {[%clk 0:00:06]}  Bd3 {[%clk 0:00:10]} 36. Rf2 {[%clk 0:00:06]}  Bd6 {[%clk 0:00:10]} 37. Ne1 {[%clk 0:00:07]}  Ke7 {[%clk 0:00:09]} 38. Nxd3 {[%clk 0:00:06]}  cxd3 {[%clk 0:00:10]} 39. b4 {[%clk 0:00:06]}  a5 {[%clk 0:00:10]} 40. Rxd3 {[%clk 0:00:07]}  axb4 {[%clk 0:00:10]} 41. cxb4 {[%clk 0:00:07]}  Bxb4 {[%clk 0:00:10]} 42. Re2 {[%clk 0:00:08]}  Rd7 {[%clk 0:00:08]} 43. Re1 {[%clk 0:00:05]}  Rbd8 {[%clk 0:00:07]} 44. Red1 {[%clk 0:00:04]}  e5 {[%clk 0:00:06]} 45. fxe5 {[%clk 0:00:04]}  fxe5 {[%clk 0:00:06]} 46. Re3 {[%clk 0:00:05]}  Rxd4 {[%clk 0:00:06]} 47. Rxd4 {[%clk 0:00:05]}  Rxd4 {[%clk 0:00:05]} 48. Rxe5+ {[%clk 0:00:06]}  Kf6 {[%clk 0:00:06]} 49. Rb5 {[%clk 0:00:06]}  Bd6 {[%clk 0:00:05]} 50. Rb6 {[%clk 0:00:07]}  Kf5 {[%clk 0:00:04]} 51. Rb5+ {[%clk 0:00:07]}  Be5 {[%clk 0:00:04]} 52. Kh2 {[%clk 0:00:06]}  Rd3 {[%clk 0:00:04]} 53. Kh1 {[%clk 0:00:05]}  Rxg3 {[%clk 0:00:03]} 54. a4 {[%clk 0:00:05]}  Ra3 {[%clk 0:00:03]} 55. Kg1 {[%clk 0:00:05]}  Rxa4 {[%clk 0:00:03]} 56. Rb8 {[%clk 0:00:05]}  Bxb8 {[%clk 0:00:02]} 57. g4+ {[%clk 0:00:02]}  Rxg4+ {[%clk 0:00:01]} 0-1


[Site "https://www.chess.com"]

[Event "Titled Tuesday Blitz June 13 Late 2023"]
[White "Krasteva, Beloslava"]
[Black "Uzcategui Rodriguez, Alejandro"]
[WhiteFideId "2922029"]
[BlackFideId "3903400"]
[WhiteElo "2187"]
[BlackElo "2252"]
[Result "0-1"]
[Round "4"]
[TimeControl "180+2"]
[Date "2023.06.13"]
[WhiteClock "0:00:03"]
[BlackClock "0:00:32"]
[Board "154"]

1. d4 {[%clk 0:03:00]}  d6 {[%clk 0:02:55]} 2. c4 {[%clk 0:02:59]}  e5 {[%clk 0:02:55]} 3. d5 {[%clk 0:02:59]}  f5 {[%clk 0:02:55]} 4. e4 {[%clk 0:02:58]}  fxe4 {[%clk 0:02:52]} 5. Nc3 {[%clk 0:02:58]}  Nf6 {[%clk 0:02:52]} 6. Nge2 {[%clk 0:02:57]}  g6 {[%clk 0:02:52]} 7. Ng3 {[%clk 0:02:56]}  Bg7 {[%clk 0:02:53]} 8. Ngxe4 {[%clk 0:02:53]}  O-O {[%clk 0:02:54]} 9. Bg5 {[%clk 0:02:48]}  Nbd7 {[%clk 0:02:53]} 10. Qd2 {[%clk 0:02:47]}  Qe8 {[%clk 0:02:52]} 11. Bd3 {[%clk 0:02:44]}  Nxe4 {[%clk 0:02:52]} 12. Nxe4 {[%clk 0:02:43]}  Nf6 {[%clk 0:02:52]} 13. O-O {[%clk 0:02:40]}  Nxe4 {[%clk 0:02:51]} 14. Bxe4 {[%clk 0:02:39]}  Bf5 {[%clk 0:02:52]} 15. Rae1 {[%clk 0:02:37]}  Bxe4 {[%clk 0:02:50]} 16. Rxe4 {[%clk 0:02:38]}  Rf5 {[%clk 0:02:50]} 17. f4 {[%clk 0:02:11]}  Qf7 {[%clk 0:02:48]} 18. Rfe1 {[%clk 0:02:01]}  Rf8 {[%clk 0:02:31]} 19. g4 {[%clk 0:01:57]}  Rxg5 {[%clk 0:02:01]} 20. fxg5 {[%clk 0:01:57]}  Qf3 {[%clk 0:02:01]} 21. Qe2 {[%clk 0:01:44]}  Qh3 {[%clk 0:01:58]} 22. Qe3 {[%clk 0:01:20]}  Qh4 {[%clk 0:01:34]} 23. b4 {[%clk 0:01:15]}  h6 {[%clk 0:01:24]} 24. Qxa7 {[%clk 0:01:01]}  b6 {[%clk 0:01:20]} 25. Rf1 {[%clk 0:00:38]}  Rxf1+ {[%clk 0:01:16]} 26. Kxf1 {[%clk 0:00:38]}  Qxh2 {[%clk 0:01:14]} 27. Re3 {[%clk 0:00:19]}  Qf4+ {[%clk 0:01:10]} 28. Ke2 {[%clk 0:00:19]}  Qxc4+ {[%clk 0:01:09]} 29. Kf2 {[%clk 0:00:16]}  e4 {[%clk 0:01:07]} 30. Qa8+ {[%clk 0:00:14]}  Kh7 {[%clk 0:01:06]} 31. Qc6 {[%clk 0:00:13]}  Qxa2+ {[%clk 0:00:57]} 32. Re2 {[%clk 0:00:13]}  Bd4+ {[%clk 0:00:57]} 33. Kf1 {[%clk 0:00:13]}  Qb1+ {[%clk 0:00:55]} 34. Re1 {[%clk 0:00:13]}  Qd3+ {[%clk 0:00:55]} 35. Re2 {[%clk 0:00:13]}  Qh3+ {[%clk 0:00:51]} 36. Ke1 {[%clk 0:00:11]}  Bc3+ {[%clk 0:00:51]} 37. Kd1 {[%clk 0:00:08]}  Qd3+ {[%clk 0:00:51]} 38. Kc1 {[%clk 0:00:08]}  Bg7 {[%clk 0:00:43]} 39. Qxc7 {[%clk 0:00:06]}  Qxe2 {[%clk 0:00:42]} 40. gxh6 {[%clk 0:00:05]}  Kxh6 {[%clk 0:00:42]} 41. Qxd6 {[%clk 0:00:05]}  Qb2+ {[%clk 0:00:40]} 42. Kd1 {[%clk 0:00:05]}  Qb1+ {[%clk 0:00:40]} 43. Ke2 {[%clk 0:00:05]}  Qd3+ {[%clk 0:00:41]} 44. Kf2 {[%clk 0:00:04]}  Bd4+ {[%clk 0:00:41]} 45. Kg2 {[%clk 0:00:03]}  Qf3+ {[%clk 0:00:41]} 46. Kh2 {[%clk 0:00:03]}  Qf2+ {[%clk 0:00:38]} 47. Kh1 {[%clk 0:00:03]}  Qg1# {[%clk 0:00:32]} 0-1


[Site "https://www.chess.com"]